[Event "Titled Tuesday Blitz February 15 Late 2022"]
[White "Mekhitarian, Krikor Sevag"]
[Black "Kosteniuk, Alexandra"]
[WhiteFideId "2107660"]
[BlackFideId "4128125"]
[WhiteElo "2598"]
[BlackElo "2469"]
[Result "1-0"]
[Round "08"]
[TimeControl "180+1"]
[Date "2022.02.15"]
[WhiteClock "0:00:16"]
[BlackClock "0:00:28"]

1. e4 {[%clk 0:03:00]}  e5 {[%clk 0:02:58]} 2. Bc4 {[%clk 0:03:00]}  Nc6 {[%clk 0:02:58]} 3. Nc3 {[%clk 0:03:00]}  Bc5 {[%clk 0:02:54]} 4. Qg4 {[%clk 0:03:00]}  g6 {[%clk 0:02:47]} 5. Qg3 {[%clk 0:03:00]}  d6 {[%clk 0:02:42]} 6. d3 {[%clk 0:02:57]}  Nd4 {[%clk 0:02:37]} 7. Bb3 {[%clk 0:02:57]}  Be6 {[%clk 0:02:33]} 8. Bxe6 {[%clk 0:02:10]}  fxe6 {[%clk 0:02:31]} 9. Kd1 {[%clk 0:02:11]}  Qd7 {[%clk 0:02:16]} 10. Nge2 {[%clk 0:02:10]}  O-O-O {[%clk 0:02:12]} 11. Nxd4 {[%clk 0:02:09]}  exd4 {[%clk 0:02:11]} 12. Ne2 {[%clk 0:02:09]}  Nf6 {[%clk 0:02:06]} 13. Bd2 {[%clk 0:02:04]}  Rdf8 {[%clk 0:02:03]} 14. f4 {[%clk 0:01:52]}  Qb5 {[%clk 0:02:02]} 15. b3 {[%clk 0:01:44]}  a5 {[%clk 0:01:55]} 16. a4 {[%clk 0:01:44]}  Qb6 {[%clk 0:01:54]} 17. Kc1 {[%clk 0:01:43]}  d5 {[%clk 0:01:45]} 18. e5 {[%clk 0:01:39]}  Nd7 {[%clk 0:01:43]} 19. Qe1 {[%clk 0:01:38]}  Bb4 {[%clk 0:01:37]} 20. Bxb4 {[%clk 0:01:38]}  axb4 {[%clk 0:01:38]} 21. a5 {[%clk 0:01:38]}  Qb5 {[%clk 0:01:39]} 22. Nxd4 {[%clk 0:01:12]}  Qa6 {[%clk 0:01:39]} 23. g3 {[%clk 0:01:06]}  c5 {[%clk 0:01:39]} 24. Nf3 {[%clk 0:01:06]}  Kb8 {[%clk 0:01:37]} 25. Rf1 {[%clk 0:01:02]}  Rc8 {[%clk 0:01:36]} 26. Kb2 {[%clk 0:00:57]}  Rc6 {[%clk 0:01:32]} 27. Qd2 {[%clk 0:00:43]}  Qb5 {[%clk 0:01:30]} 28. c4 {[%clk 0:00:38]}  bxc3+ {[%clk 0:01:28]} 29. Qxc3 {[%clk 0:00:38]}  Rhc8 {[%clk 0:01:24]} 30. Rfc1 {[%clk 0:00:38]}  Ra6 {[%clk 0:01:18]} 31. Nd4 {[%clk 0:00:30]}  Qb4 {[%clk 0:01:12]} 32. Qxb4 {[%clk 0:00:28]}  cxb4 {[%clk 0:01:13]} 33. Rxc8+ {[%clk 0:00:27]}  Kxc8 {[%clk 0:01:14]} 34. Nc2 {[%clk 0:00:26]}  Kd8 {[%clk 0:00:53]} 35. Nxb4 {[%clk 0:00:26]}  Ra8 {[%clk 0:00:53]} 36. d4 {[%clk 0:00:26]}  Nb8 {[%clk 0:00:52]} 37. Nd3 {[%clk 0:00:23]}  Nc6 {[%clk 0:00:50]} 38. Kc3 {[%clk 0:00:22]}  Kc7 {[%clk 0:00:46]} 39. b4 {[%clk 0:00:21]}  Na7 {[%clk 0:00:43]} 40. Nc5 {[%clk 0:00:19]}  Nb5+ {[%clk 0:00:43]} 41. Kd3 {[%clk 0:00:20]}  Re8 {[%clk 0:00:44]} 42. h4 {[%clk 0:00:18]}  h5 {[%clk 0:00:42]} 43. a6 {[%clk 0:00:16]}  b6 {[%clk 0:00:32]} 44. a7 {[%clk 0:00:16]}  Ra8 {[%clk 0:00:31]} 45. Nxe6+ {[%clk 0:00:17]}  Kd7 {[%clk 0:00:32]} 46. Nf8+ {[%clk 0:00:15]}  Ke7 {[%clk 0:00:29]} 47. Nxg6+ {[%clk 0:00:15]}  Kf7 {[%clk 0:00:30]} 48. f5 {[%clk 0:00:16]}  Rxa7 {[%clk 0:00:27]} 49. Rxa7+ {[%clk 0:00:15]}  Nxa7 {[%clk 0:00:28]} 50. Nf4 {[%clk 0:00:16]} 1-0


[Site "https://www.chess.com"]

[Event "Titled Tuesday Blitz February 15 Late 2022"]
[White "Mikhailov, Viacheslav"]
[Black "Vovk, Orest"]
[WhiteFideId "4187369"]
[BlackFideId "14113490"]
[WhiteElo "2381"]
[BlackElo "2203"]
[Result "0-1"]
[Round "08"]
[TimeControl "180+1"]
[Date "2022.02.15"]
[WhiteClock "0:00:03"]
[BlackClock "0:00:03"]

1. Nf3 {[%clk 0:02:28]}  h6 {[%clk 0:02:59]} 2. g3 {[%clk 0:02:26]}  g5 {[%clk 0:02:59]} 3. Bg2 {[%clk 0:02:27]}  g4 {[%clk 0:02:59]} 4. Nd4 {[%clk 0:02:27]}  Bg7 {[%clk 0:02:59]} 5. Nf5 {[%clk 0:02:27]}  Bf6 {[%clk 0:02:55]} 6. O-O {[%clk 0:02:27]}  d5 {[%clk 0:02:52]} 7. Ne3 {[%clk 0:02:23]}  d4 {[%clk 0:02:47]} 8. Nc4 {[%clk 0:02:23]}  Nc6 {[%clk 0:02:42]} 9. c3 {[%clk 0:02:22]}  Be6 {[%clk 0:02:36]} 10. Qa4 {[%clk 0:02:21]}  Bd5 {[%clk 0:02:34]} 11. e4 {[%clk 0:02:08]}  dxe3 {[%clk 0:02:30]} 12. Nxe3 {[%clk 0:02:05]}  Bxg2 {[%clk 0:02:28]} 13. Kxg2 {[%clk 0:02:06]}  h5 {[%clk 0:02:19]} 14. d4 {[%clk 0:02:07]}  Qd7 {[%clk 0:02:11]} 15. d5 {[%clk 0:02:01]}  Ne5 {[%clk 0:02:08]} 16. Qxd7+ {[%clk 0:02:02]}  Kxd7 {[%clk 0:02:03]} 17. Nd2 {[%clk 0:02:01]}  Bg7 {[%clk 0:01:50]} 18. Ne4 {[%clk 0:01:47]}  Nf6 {[%clk 0:01:44]} 19. Nc5+ {[%clk 0:01:46]}  Kc8 {[%clk 0:01:44]} 20. Nf5 {[%clk 0:01:43]}  Bf8 {[%clk 0:01:44]} 21. Bf4 {[%clk 0:01:34]}  Ned7 {[%clk 0:01:44]} 22. Nxd7 {[%clk 0:01:34]}  Kxd7 {[%clk 0:01:41]} 23. Rfe1 {[%clk 0:01:32]}  h4 {[%clk 0:01:23]} 24. Rad1 {[%clk 0:01:28]}  h3+ {[%clk 0:01:20]} 25. Kf1 {[%clk 0:01:28]}  Rh5 {[%clk 0:01:19]} 26. Ne3 {[%clk 0:01:21]}  Rd8 {[%clk 0:01:09]} 27. Rd4 {[%clk 0:01:11]}  b5 {[%clk 0:00:51]} 28. a4 {[%clk 0:01:08]}  a6 {[%clk 0:00:51]} 29. axb5 {[%clk 0:01:08]}  axb5 {[%clk 0:00:52]} 30. Ra1 {[%clk 0:01:03]}  Kc8 {[%clk 0:00:30]} 31. Ra8+ {[%clk 0:01:02]}  Kd7 {[%clk 0:00:30]} 32. Ra7 {[%clk 0:01:03]}  Rc8 {[%clk 0:00:29]} 33. c4 {[%clk 0:00:55]}  bxc4 {[%clk 0:00:27]} 34. Nxc4 {[%clk 0:00:56]}  Ke8 {[%clk 0:00:14]} 35. Ne3 {[%clk 0:00:51]}  Bh6 {[%clk 0:00:12]} 36. Bxh6 {[%clk 0:00:45]}  Rxh6 {[%clk 0:00:13]} 37. Nxg4 {[%clk 0:00:46]}  Nxg4 {[%clk 0:00:10]} 38. Rxg4 {[%clk 0:00:47]}  Kf8 {[%clk 0:00:11]} 39. Rb4 {[%clk 0:00:28]}  Rd8 {[%clk 0:00:09]} 40. Ra5 {[%clk 0:00:19]}  c6 {[%clk 0:00:08]} 41. Rd4 {[%clk 0:00:12]}  cxd5 {[%clk 0:00:04]} 42. Raxd5 {[%clk 0:00:13]}  Rc8 {[%clk 0:00:03]} 43. Rd1 {[%clk 0:00:10]}  Rc2 {[%clk 0:00:02]} 44. R5d2 {[%clk 0:00:10]}  Rc5 {[%clk 0:00:02]} 45. b4 {[%clk 0:00:08]}  Rb5 {[%clk 0:00:02]} 46. Rd4 {[%clk 0:00:09]}  Kg7 {[%clk 0:00:02]} 47. Rg4+ {[%clk 0:00:08]}  Rg6 {[%clk 0:00:02]} 48. Rh4 {[%clk 0:00:08]}  Rf6 {[%clk 0:00:02]} 49. Rdd4 {[%clk 0:00:08]}  Rff5 {[%clk 0:00:02]} 50. Rxh3 {[%clk 0:00:08]}  Kf6 {[%clk 0:00:03]} 51. Rhh4 {[%clk 0:00:08]}  e5 {[%clk 0:00:03]} 52. Rc4 {[%clk 0:00:07]}  Ke7 {[%clk 0:00:03]} 53. Rh6 {[%clk 0:00:07]}  Rd5 {[%clk 0:00:03]} 54. Rc7+ {[%clk 0:00:06]}  Kf8 {[%clk 0:00:03]} 55. Rc2 {[%clk 0:00:06]}  Kg7 {[%clk 0:00:04]} 56. Rb6 {[%clk 0:00:06]}  Rd4 {[%clk 0:00:04]} 57. b5 {[%clk 0:00:06]}  e4 {[%clk 0:00:04]} 58. Re2 {[%clk 0:00:06]}  Rf3 {[%clk 0:00:04]} 59. Rb7 {[%clk 0:00:06]}  Kg6 {[%clk 0:00:03]} 60. Re7 {[%clk 0:00:06]}  f5 {[%clk 0:00:03]} 61. b6 {[%clk 0:00:07]}  Rb3 {[%clk 0:00:03]} 62. b7 {[%clk 0:00:07]}  Rb1+ {[%clk 0:00:03]} 63. Kg2 {[%clk 0:00:07]}  Rdb4 {[%clk 0:00:04]} 64. Rc2 {[%clk 0:00:07]}  Rxb7 {[%clk 0:00:04]} 65. Rc6+ {[%clk 0:00:08]}  Kg5 {[%clk 0:00:04]} 66. h4+ {[%clk 0:00:08]}  Kh5 {[%clk 0:00:04]} 67. Re5 {[%clk 0:00:03]}  R1b5 {[%clk 0:00:03]} 0-1


[Site "https://www.chess.com"]

[Event "Titled Tuesday Blitz February 15 Late 2022"]
[White "Mikhailovsky, Vladimir"]
[Black "Vidit, Santosh Gujrathi"]
[WhiteFideId "34105414"]
[BlackFideId "5029465"]
[WhiteElo "2371"]
[BlackElo "2654"]
[Result "0-1"]
[Round "08"]
[TimeControl "180+1"]
[Date "2022.02.15"]
[WhiteClock "0:00:12"]
[BlackClock "0:00:48"]

1. d4 {[%clk 0:03:00]}  Nf6 {[%clk 0:02:59]} 2. c4 {[%clk 0:03:01]}  g6 {[%clk 0:03:00]} 3. Nc3 {[%clk 0:02:59]}  d5 {[%clk 0:03:00]} 4. Nf3 {[%clk 0:02:59]}  Bg7 {[%clk 0:03:00]} 5. Bg5 {[%clk 0:02:59]}  Ne4 {[%clk 0:03:00]} 6. Bf4 {[%clk 0:03:00]}  Nxc3 {[%clk 0:02:58]} 7. bxc3 {[%clk 0:03:01]}  c5 {[%clk 0:02:58]} 8. e3 {[%clk 0:03:01]}  Nc6 {[%clk 0:02:57]} 9. cxd5 {[%clk 0:03:01]}  Qxd5 {[%clk 0:02:57]} 10. Be2 {[%clk 0:03:02]}  cxd4 {[%clk 0:02:53]} 11. cxd4 {[%clk 0:03:03]}  Qa5+ {[%clk 0:02:50]} 12. Qd2 {[%clk 0:02:58]}  Qxd2+ {[%clk 0:02:47]} 13. Kxd2 {[%clk 0:02:59]}  O-O {[%clk 0:02:48]} 14. Rhc1 {[%clk 0:02:57]}  Rd8 {[%clk 0:02:48]} 15. Ke1 {[%clk 0:02:55]}  Bf5 {[%clk 0:02:47]} 16. Rc5 {[%clk 0:02:34]}  Be4 {[%clk 0:02:45]} 17. Rac1 {[%clk 0:02:33]}  e6 {[%clk 0:02:42]} 18. Rb5 {[%clk 0:02:21]}  Rac8 {[%clk 0:02:19]} 19. Bg5 {[%clk 0:01:52]}  f6 {[%clk 0:02:15]} 20. Bf4 {[%clk 0:01:39]}  b6 {[%clk 0:02:14]} 21. Rb3 {[%clk 0:01:24]}  Ne7 {[%clk 0:02:12]} 22. Rxc8 {[%clk 0:01:10]}  Rxc8 {[%clk 0:02:13]} 23. Bd3 {[%clk 0:01:01]}  Bxd3 {[%clk 0:02:10]} 24. Rxd3 {[%clk 0:01:01]}  Nd5 {[%clk 0:02:08]} 25. Bd6 {[%clk 0:01:00]}  Kf7 {[%clk 0:01:11]} 26. Kd2 {[%clk 0:00:52]}  Ke8 {[%clk 0:01:04]} 27. e4 {[%clk 0:00:46]}  Bh6+ {[%clk 0:01:03]} 28. Ke1 {[%clk 0:00:26]}  Rc1+ {[%clk 0:01:01]} 29. Rd1 {[%clk 0:00:24]}  Rxd1+ {[%clk 0:01:01]} 30. Kxd1 {[%clk 0:00:25]}  Nc3+ {[%clk 0:01:02]} 31. Kc2 {[%clk 0:00:25]}  Nxe4 {[%clk 0:01:03]} 32. Bb8 {[%clk 0:00:25]}  a6 {[%clk 0:01:01]} 33. Ba7 {[%clk 0:00:13]}  b5 {[%clk 0:01:01]} 34. Ne1 {[%clk 0:00:11]}  Nxf2 {[%clk 0:00:59]} 35. d5 {[%clk 0:00:12]}  Ng4 {[%clk 0:00:57]} 36. h3 {[%clk 0:00:11]}  Ne3+ {[%clk 0:00:50]} 37. Bxe3 {[%clk 0:00:11]}  Bxe3 {[%clk 0:00:51]} 38. dxe6 {[%clk 0:00:12]}  Ke7 {[%clk 0:00:51]} 39. Nd3 {[%clk 0:00:12]}  Kxe6 {[%clk 0:00:50]} 40. Nb4 {[%clk 0:00:12]}  a5 {[%clk 0:00:50]} 41. Nc6 {[%clk 0:00:12]}  Bb6 {[%clk 0:00:50]} 42. Kd3 {[%clk 0:00:12]}  Kd6 {[%clk 0:00:48]} 0-1


[Site "https://www.chess.com"]

[Event "Titled Tuesday Blitz February 15 Late 2022"]
[White "Mladenovic, Stefan"]
[Black "Gracia Alvarez, Gerardo Antonio"]
[WhiteFideId "942227"]
[BlackFideId "5109124"]
[WhiteElo "2355"]
[BlackElo "2139"]
[Result "0-1"]
[Round "08"]
[TimeControl "180+1"]
[Date "2022.02.16"]
[WhiteClock "0:00:15"]
[BlackClock "0:00:05"]

1. d4 {[%clk 0:03:00]}  Nf6 {[%clk 0:02:58]} 2. Nf3 {[%clk 0:02:58]}  g6 {[%clk 0:02:59]} 3. Bf4 {[%clk 0:02:48]}  Bg7 {[%clk 0:02:56]} 4. e3 {[%clk 0:02:47]}  d6 {[%clk 0:02:56]} 5. Be2 {[%clk 0:02:46]}  Nh5 {[%clk 0:02:54]} 6. Bg5 {[%clk 0:02:45]}  c5 {[%clk 0:02:55]} 7. c3 {[%clk 0:02:43]}  cxd4 {[%clk 0:02:53]} 8. exd4 {[%clk 0:02:42]}  h6 {[%clk 0:02:52]} 9. Bh4 {[%clk 0:02:39]}  Nf4 {[%clk 0:02:48]} 10. O-O {[%clk 0:02:34]}  g5 {[%clk 0:02:38]} 11. Bg3 {[%clk 0:02:34]}  Nxe2+ {[%clk 0:02:38]} 12. Qxe2 {[%clk 0:02:33]}  O-O {[%clk 0:02:38]} 13. h4 {[%clk 0:02:29]}  Bg4 {[%clk 0:02:22]} 14. hxg5 {[%clk 0:02:29]}  hxg5 {[%clk 0:02:22]} 15. Qe4 {[%clk 0:02:25]}  Bxf3 {[%clk 0:02:18]} 16. Qxf3 {[%clk 0:02:25]}  Nc6 {[%clk 0:02:16]} 17. Qh5 {[%clk 0:02:17]}  e5 {[%clk 0:02:12]} 18. dxe5 {[%clk 0:02:13]}  dxe5 {[%clk 0:02:11]} 19. Rd1 {[%clk 0:02:14]}  Qf6 {[%clk 0:02:09]} 20. Nd2 {[%clk 0:02:14]}  Qh6 {[%clk 0:01:54]} 21. Qxh6 {[%clk 0:02:07]}  Bxh6 {[%clk 0:01:55]} 22. Nc4 {[%clk 0:01:51]}  f6 {[%clk 0:01:54]} 23. Rd7 {[%clk 0:01:45]}  b5 {[%clk 0:01:49]} 24. Nd6 {[%clk 0:01:44]}  Rfd8 {[%clk 0:01:38]} 25. Rxd8+ {[%clk 0:01:37]}  Rxd8 {[%clk 0:01:38]} 26. Nxb5 {[%clk 0:01:28]}  Rb8 {[%clk 0:01:38]} 27. c4 {[%clk 0:01:26]}  a6 {[%clk 0:01:37]} 28. Nc7 {[%clk 0:01:25]}  Rxb2 {[%clk 0:01:28]} 29. Nxa6 {[%clk 0:01:25]}  Rc2 {[%clk 0:01:22]} 30. c5 {[%clk 0:01:23]}  Bf8 {[%clk 0:01:16]} 31. f3 {[%clk 0:01:18]}  Nb4 {[%clk 0:01:01]} 32. a4 {[%clk 0:01:11]}  Nxa6 {[%clk 0:00:58]} 33. Bf2 {[%clk 0:01:02]}  Bxc5 {[%clk 0:00:58]} 34. Bxc5 {[%clk 0:01:01]}  Rxc5 {[%clk 0:00:56]} 35. Rb1 {[%clk 0:01:01]}  Ra5 {[%clk 0:00:55]} 36. Rb6 {[%clk 0:01:00]}  Kf7 {[%clk 0:00:54]} 37. Rb7+ {[%clk 0:01:00]}  Kg6 {[%clk 0:00:53]} 38. Ra7 {[%clk 0:01:00]}  Rxa4 {[%clk 0:00:53]} 39. g4 {[%clk 0:01:01]}  Nc5 {[%clk 0:00:51]} 40. Rc7 {[%clk 0:01:00]}  Ne6 {[%clk 0:00:50]} 41. Rc2 {[%clk 0:00:57]}  Nd4 {[%clk 0:00:48]} 42. Rf2 {[%clk 0:00:56]}  Rc4 {[%clk 0:00:47]} 43. Rf1 {[%clk 0:00:53]}  Rc2 {[%clk 0:00:46]} 44. Kh1 {[%clk 0:00:52]}  Kf7 {[%clk 0:00:42]} 45. Ra1 {[%clk 0:00:47]}  Nxf3 {[%clk 0:00:40]} 46. Ra7+ {[%clk 0:00:47]}  Ke6 {[%clk 0:00:33]} 47. Ra6+ {[%clk 0:00:47]}  Kd5 {[%clk 0:00:31]} 48. Ra5+ {[%clk 0:00:46]}  Ke4 {[%clk 0:00:29]} 49. Ra4+ {[%clk 0:00:45]}  Nd4 {[%clk 0:00:29]} 50. Ra1 {[%clk 0:00:44]}  Kf3 {[%clk 0:00:22]} 51. Rf1+ {[%clk 0:00:43]}  Rf2 {[%clk 0:00:21]} 52. Re1 {[%clk 0:00:42]}  e4 {[%clk 0:00:19]} 53. Ra1 {[%clk 0:00:40]}  e3 {[%clk 0:00:19]} 54. Ra3 {[%clk 0:00:38]}  Ke4 {[%clk 0:00:16]} 55. Ra8 {[%clk 0:00:32]}  e2 {[%clk 0:00:14]} 56. Re8+ {[%clk 0:00:33]}  Kf3 {[%clk 0:00:14]} 57. Re7 {[%clk 0:00:28]}  Rf1+ {[%clk 0:00:12]} 58. Kh2 {[%clk 0:00:28]}  e1=Q {[%clk 0:00:08]} 59. Re3+ {[%clk 0:00:16]}  Qxe3 {[%clk 0:00:05]} 60. Kh3 {[%clk 0:00:15]}  Rh1# {[%clk 0:00:05]} 0-1


[Site "https://www.chess.com"]

[Event "Titled Tuesday Blitz February 15 Late 2022"]
[White "Moskalenko, Alexander"]
[Black "Zhigalko, Sergei"]
[WhiteFideId "4155351"]
[BlackFideId "13502956"]
[WhiteElo "2515"]
[BlackElo "2662"]
[Result "1/2-1/2"]
[Round "08"]
[TimeControl "180+1"]
[Date "2022.02.15"]
[WhiteClock "0:00:58"]
[BlackClock "0:00:13"]

1. d4 {[%clk 0:02:57]}  Nf6 {[%clk 0:02:58]} 2. Nf3 {[%clk 0:02:56]}  e6 {[%clk 0:02:59]} 3. Bf4 {[%clk 0:02:55]}  b6 {[%clk 0:02:58]} 4. e3 {[%clk 0:02:54]}  Bb7 {[%clk 0:02:59]} 5. h3 {[%clk 0:02:55]}  Bd6 {[%clk 0:02:58]} 6. Bxd6 {[%clk 0:02:53]}  cxd6 {[%clk 0:02:59]} 7. c4 {[%clk 0:02:54]}  O-O {[%clk 0:03:00]} 8. Nc3 {[%clk 0:02:54]}  d5 {[%clk 0:02:58]} 9. cxd5 {[%clk 0:02:53]}  Nxd5 {[%clk 0:02:59]} 10. Nxd5 {[%clk 0:02:51]}  Bxd5 {[%clk 0:03:00]} 11. Bd3 {[%clk 0:02:51]}  f5 {[%clk 0:02:59]} 12. Rc1 {[%clk 0:02:45]}  Nc6 {[%clk 0:02:59]} 13. Bc4 {[%clk 0:02:45]}  Be4 {[%clk 0:02:40]} 14. d5 {[%clk 0:02:31]}  Na5 {[%clk 0:02:39]} 15. dxe6 {[%clk 0:02:30]}  Nxc4 {[%clk 0:02:40]} 16. e7 {[%clk 0:02:29]}  Qxe7 {[%clk 0:02:38]} 17. Rxc4 {[%clk 0:02:29]}  d5 {[%clk 0:02:34]} 18. Rd4 {[%clk 0:02:09]}  f4 {[%clk 0:02:34]} 19. O-O {[%clk 0:02:02]}  fxe3 {[%clk 0:02:34]} 20. fxe3 {[%clk 0:02:03]}  Rac8 {[%clk 0:02:28]} 21. Nd2 {[%clk 0:02:00]}  Rxf1+ {[%clk 0:01:25]} 22. Qxf1 {[%clk 0:02:01]}  Bg6 {[%clk 0:00:44]} 23. Qf4 {[%clk 0:02:01]}  h6 {[%clk 0:00:32]} 24. Rxd5 {[%clk 0:01:52]}  Rc2 {[%clk 0:00:33]} 25. Qd4 {[%clk 0:01:49]}  Rc1+ {[%clk 0:00:26]} 26. Kh2 {[%clk 0:01:45]}  Qc7+ {[%clk 0:00:26]} 27. Qf4 {[%clk 0:01:16]}  Qxf4+ {[%clk 0:00:25]} 28. exf4 {[%clk 0:01:17]}  Rc2 {[%clk 0:00:26]} 29. f5 {[%clk 0:01:05]}  Bxf5 {[%clk 0:00:25]} 30. Rxf5 {[%clk 0:01:04]}  Rxd2 {[%clk 0:00:25]} 31. Rb5 {[%clk 0:01:05]}  Kf7 {[%clk 0:00:24]} 32. a4 {[%clk 0:01:04]}  Ke6 {[%clk 0:00:12]} 33. a5 {[%clk 0:01:04]}  bxa5 {[%clk 0:00:13]} 34. Rxa5 {[%clk 0:01:03]}  Rxb2 {[%clk 0:00:12]} 35. Rxa7 {[%clk 0:01:03]}  Kf6 {[%clk 0:00:13]} 36. Ra3 {[%clk 0:01:00]}  Kg6 {[%clk 0:00:12]} 37. Rg3+ {[%clk 0:00:58]}  Kh7 {[%clk 0:00:13]} 1/2-1/2


[Site "https://www.chess.com"]

[Event "Titled Tuesday Blitz February 15 Late 2022"]
[White "Nepomniachtchi, Ian"]
[Black "Lin, Dachey"]
[WhiteFideId "4168119"]
[BlackFideId "2029650"]
[WhiteElo "2740"]
[BlackElo "2763"]
[Result "0-1"]
[Round "08"]
[TimeControl "180+1"]
[Date "2022.02.15"]
[WhiteClock "0:01:20"]
[BlackClock "0:00:30"]

1. e4 {[%clk 0:03:00]}  g6 {[%clk 0:03:00]} 2. d4 {[%clk 0:03:00]}  Bg7 {[%clk 0:03:01]} 3. Nf3 {[%clk 0:03:00]}  c6 {[%clk 0:03:01]} 4. Nc3 {[%clk 0:03:00]}  d5 {[%clk 0:03:01]} 5. h3 {[%clk 0:03:01]}  dxe4 {[%clk 0:02:58]} 6. Nxe4 {[%clk 0:03:02]}  Nf6 {[%clk 0:02:59]} 7. Bd3 {[%clk 0:03:02]}  O-O {[%clk 0:02:59]} 8. O-O {[%clk 0:03:02]}  Nbd7 {[%clk 0:03:00]} 9. Re1 {[%clk 0:02:59]}  Nxe4 {[%clk 0:03:00]} 10. Bxe4 {[%clk 0:03:00]}  Nf6 {[%clk 0:03:01]} 11. Bd3 {[%clk 0:03:00]}  a5 {[%clk 0:02:58]} 12. a4 {[%clk 0:02:57]}  Be6 {[%clk 0:02:49]} 13. Rxe6 {[%clk 0:02:50]}  fxe6 {[%clk 0:02:50]} 14. Qe2 {[%clk 0:02:47]}  Qd7 {[%clk 0:02:21]} 15. c3 {[%clk 0:02:45]}  Nd5 {[%clk 0:02:19]} 16. Bc4 {[%clk 0:02:41]}  Rf5 {[%clk 0:02:14]} 17. Bd2 {[%clk 0:02:36]}  Raf8 {[%clk 0:02:14]} 18. Re1 {[%clk 0:02:36]}  e5 {[%clk 0:02:05]} 19. dxe5 {[%clk 0:02:33]}  e6 {[%clk 0:01:43]} 20. Qe4 {[%clk 0:02:28]}  Qe7 {[%clk 0:01:34]} 21. Re2 {[%clk 0:02:26]}  Qc5 {[%clk 0:01:28]} 22. b4 {[%clk 0:02:21]}  axb4 {[%clk 0:01:11]} 23. cxb4 {[%clk 0:02:22]}  Qe7 {[%clk 0:01:11]} 24. Qg4 {[%clk 0:02:20]}  Rf4 {[%clk 0:01:09]} 25. Bxf4 {[%clk 0:02:06]}  Rxf4 {[%clk 0:01:10]} 26. Qg5 {[%clk 0:02:02]}  Rxc4 {[%clk 0:01:02]} 27. b5 {[%clk 0:01:57]}  Rxa4 {[%clk 0:00:57]} 28. bxc6 {[%clk 0:01:57]}  bxc6 {[%clk 0:00:58]} 29. Qc1 {[%clk 0:01:56]}  c5 {[%clk 0:00:52]} 30. Rb2 {[%clk 0:01:54]}  Rb4 {[%clk 0:00:50]} 31. Ra2 {[%clk 0:01:54]}  h6 {[%clk 0:00:49]} 32. Qc2 {[%clk 0:01:52]}  Kh7 {[%clk 0:00:47]} 33. Ra6 {[%clk 0:01:51]}  Rf4 {[%clk 0:00:45]} 34. Ra8 {[%clk 0:01:44]}  c4 {[%clk 0:00:40]} 35. Nh2 {[%clk 0:01:37]}  Bxe5 {[%clk 0:00:38]} 36. Ng4 {[%clk 0:01:37]}  Bg7 {[%clk 0:00:38]} 37. g3 {[%clk 0:01:36]}  Rf5 {[%clk 0:00:36]} 38. Qa2 {[%clk 0:01:30]}  c3 {[%clk 0:00:31]} 39. Kh2 {[%clk 0:01:29]}  h5 {[%clk 0:00:30]} 40. Ra7 {[%clk 0:01:23]}  Qf8 {[%clk 0:00:30]} 41. f4 {[%clk 0:01:20]}  hxg4 {[%clk 0:00:29]} 42. hxg4 {[%clk 0:01:20]}  Rf7 {[%clk 0:00:30]} 0-1


[Site "https://www.chess.com"]

[Event "Titled Tuesday Blitz February 15 Late 2022"]
[White "Osmonbekov, Talaibek"]
[Black "Van den Dikkenberg, Erik"]
[WhiteFideId "2017253"]
[BlackFideId "1005880"]
[WhiteElo "2135"]
[BlackElo "2118"]
[Result "1-0"]
[Round "08"]
[TimeControl "180+1"]
[Date "2022.02.16"]
[WhiteClock "0:00:30"]
[BlackClock "0:00:01"]

1. d4 {[%clk 0:03:00]}  Nf6 {[%clk 0:02:59]} 2. Nc3 {[%clk 0:03:01]}  g6 {[%clk 0:02:59]} 3. e4 {[%clk 0:02:59]}  d6 {[%clk 0:03:00]} 4. Bf4 {[%clk 0:02:59]}  Bg7 {[%clk 0:03:00]} 5. Qd2 {[%clk 0:02:59]}  c6 {[%clk 0:02:59]} 6. O-O-O {[%clk 0:02:59]}  b5 {[%clk 0:03:00]} 7. f3 {[%clk 0:03:00]}  b4 {[%clk 0:03:00]} 8. Nce2 {[%clk 0:03:00]}  Qa5 {[%clk 0:03:00]} 9. Kb1 {[%clk 0:03:00]}  Nbd7 {[%clk 0:02:57]} 10. g4 {[%clk 0:02:58]}  O-O {[%clk 0:02:51]} 11. h4 {[%clk 0:02:58]}  h5 {[%clk 0:02:47]} 12. e5 {[%clk 0:02:47]}  Nd5 {[%clk 0:02:44]} 13. Bh6 {[%clk 0:02:39]}  dxe5 {[%clk 0:02:38]} 14. gxh5 {[%clk 0:02:32]}  Nc3+ {[%clk 0:02:14]} 15. bxc3 {[%clk 0:02:27]}  bxc3 {[%clk 0:02:15]} 16. Nxc3 {[%clk 0:02:27]}  Bxh6 {[%clk 0:02:11]} 17. Qxh6 {[%clk 0:02:16]}  Qxc3 {[%clk 0:02:10]} 18. hxg6 {[%clk 0:02:15]}  Rb8+ {[%clk 0:02:09]} 19. Kc1 {[%clk 0:02:16]}  Qa1+ {[%clk 0:01:20]} 20. Kd2 {[%clk 0:02:13]}  Qxd4+ {[%clk 0:01:19]} 21. Ke2 {[%clk 0:01:58]}  Ba6+ {[%clk 0:01:12]} 22. Ke1 {[%clk 0:01:52]}  Qc3+ {[%clk 0:01:03]} 23. Kf2 {[%clk 0:01:50]}  Qxc2+ {[%clk 0:01:00]} 24. Rd2 {[%clk 0:01:50]}  Qc5+ {[%clk 0:01:00]} 25. Kg3 {[%clk 0:01:43]}  Nf6 {[%clk 0:00:43]} 26. Bxa6 {[%clk 0:01:33]}  Rb1 {[%clk 0:00:27]} 27. Rg2 {[%clk 0:01:09]}  Qd6 {[%clk 0:00:17]} 28. Bc4 {[%clk 0:00:58]}  e4+ {[%clk 0:00:14]} 29. f4 {[%clk 0:00:53]}  e6 {[%clk 0:00:09]} 30. Kh3 {[%clk 0:00:46]}  Qd4 {[%clk 0:00:01]} 31. g7 {[%clk 0:00:30]} 1-0


[Site "https://www.chess.com"]